bitfinex-derivatives/quotes_SOLF0:USTF0_20240911
["timestamp","ask_amount","ask_price","bid_price","bid_amount"]
[1726066589224,1.404,128.94,128.85,1.4154]
[1726066589424,5.2821,128.94,128.89,3.8793]
[1726066589729,6.55458183,128.96,128.86,32.77]
[1726066589932,6.55458183,128.96,128.91,3.8787]
[1726066590519,10.43208183,128.96,128.91,3.8787]
[1726066590933,10.43198183,128.96,128.88,32.77]
[1726066591432,10.43198183,128.96,128.91,3.8786]
[1726066591628,10.43198183,128.96,128.88,32.77]
[1726066591629,3.8778,128.95,128.88,32.77]
[1726066592129,3.8778,128.95,128.9,3.8788]
[1726066592332,10.43208183,128.96,128.88,32.77]
[1726066592534,345.768,129.05,128.93,32.77]
[1726066592835,2.8124,129.03,128.93,32.77]
[1726066593126,2.8124,129.03,128.95,32.77]
[1726066593329,2.8124,129.03,128.98,3.8766]
[1726066593528,2.8124,129.03,128.95,32.77]
[1726066593724,1.4202,129.03,128.99,3.8762]
[1726066593925,1.4202,129.03,128.95,36.69112425]
[1726066594524,7.768,129.07,128.97,32.77]
[1726066594727,11.64374625,129.07,128.97,32.77]
[1726066595031,11.6428,129.05,128.99,3.8763]
[1726066595330,7.768,129.05,128.97,32.77]
[1726066595631,32.77,129.03,128.78,3.19223501]
[1726066595927,2.7995,129.02,128.9,32.77]
[1726066596126,32.77,129.01,128.91,1.4381]
[1726066596526,2.7995,129.02,128.91,1.4381]
[1726066596728,2.7995,129.02,128.94,3.8777]
[1726066596925,2.7995,129.02,128.91,1.4381]
[1726066597328,7.768,129.05,128.91,1.4381]
[1726066597537,7.768,129.05,128.98,32.77]
[1726066597731,7.768,129.05,129.01,3.8756]
[1726066597932,7.768,129.05,128.92,7.7568]
[1726066598233,7.768,129.05,128.95,32.77]
[1726066598627,3.8749,129.04,128.99,3.8764]
[1726066598828,7.768,129.05,128.95,32.77]
[1726066600033,32.77,129.04,128.93,32.77]
[1726066600233,3.8761,129.01,128.96,3.8772]
[1726066600433,2.6192,129.03,128.93,36.60654706]
[1726066600629,2.6192,129.03,128.93,32.77]
[1726066600829,34.164,129.02,128.91,38.15437347]
[1726066601030,7.768,129.05,128.91,34.2081]
[1726066601232,11.64370737,129.05,128.99,32.77]
[1726066601425,7.768,129.05,128.99,32.77]
[1726066601632,7.768,129.05,129.02,3.8755]
[1726066601828,7.768,129.05,128.99,32.77]
[1726066602335,7.768,129.05,129.02,3.8754]
[1726066602637,7.768,129.05,129.01,3.8758]
[1726066603029,7.768,129.09,128.99,32.77]
[1726066603338,7.768,129.05,128.99,32.77]
[1726066604729,7.768,129.06,129.04,32.77]
[1726066604935,7.768,129.06,129.02,32.77]
[1726066605439,7.768,129.06,129.05,3.8746]
[1726066605742,9.176,129.1,129.05,32.77]
[1726066606141,12.96667661,129.1,129.05,32.77]
[1726066606334,12.96667661,129.1,129.07,3.8738]
[1726066606734,12.96667661,129.1,129.05,32.77]
[1726066607639,9.176,129.1,129.05,32.77]
[1726066607942,9.176,129.1,129.08,3.8737]
[1726066608138,12.96202642,129.1,129.05,32.77]
[1726066608750,9.176,129.1,129.05,32.77]
[1726066609040,4.1419,129.16,129.09,32.77]
[1726066609243,7.768,129.15,129.1,3.8729]
[1726066609545,8.09222344,129.2,129.13,32.77]
[1726066609743,2.6478,129.22,128.96,3.81372396]
[1726066609934,1.4321,129.21,129.11,32.77]
[1726066610135,7.768,129.18,129.11,32.77]
[1726066610344,7.768,129.17,129.08,32.77]
[1726066610647,7.768,129.17,129.12,3.8724]
[1726066610842,7.768,129.17,129.08,32.77]
[1726066612345,3.8712,129.17,129.11,3.8726]
[1726066612653,7.768,129.2,129.11,3.8726]
[1726066613037,23.31,129.37,129.23,13.1287]
[1726066613239,23.31,129.37,129.09,7.7467]
[1726066613240,32.77,129.25,129.09,32.77]
[1726066613542,56.08,129.32,129.07,32.77]
[1726066613744,32.77,129.18,129.07,32.77]
[1726066613943,3.90128889,129.17,129.09,32.77]
[1726066614255,3.82341035,129.18,129.09,32.77]
[1726066614443,32.77,129.22,129.09,32.77]
[1726066614744,3.78079025,129.22,128.96,7.7542]
[1726066615057,32.77,129.17,129.05,32.77]
[1726066616341,3.95669502,129.22,129.05,32.77]
[1726066616539,32.77,129.18,129.05,32.77]
[1726066616747,36.69135296,129.18,129.05,32.77]
[1726066616948,32.77,129.16,129.07,3.8739]
[1726066617342,3.873,129.11,129.05,3.8743]
[1726066617852,3.96513882,129.13,129.03,32.77]
[1726066618044,3.873,129.11,129.05,3.8745]
[1726066618443,1.3963,129.12,129.01,32.77]
[1726066618647,3.8731,129.1,129.04,3.8748]
[1726066619347,3.8731,129.1,129.05,3.8745]
[1726066619547,3.8731,129.1,129.01,32.77]
[1726066619937,3.8734,129.09,129.01,32.77]
[1726066620250,3.91993931,129.11,129.01,32.77]
[1726066620645,1.3963,129.12,129.05,32.77]
[1726066621447,1.3963,129.12,129.0,36.8295]
[1726066621655,3.8738,129.08,129.02,3.8754]
[1726066621843,1.3963,129.12,129.02,3.8754]
[1726066622151,1.3963,129.12,129.0,36.8295]
[1726066622351,1.3963,129.12,129.03,3.875]
[1726066622650,1.3963,129.12,129.03,32.77]
[1726066622844,1.3963,129.12,129.05,32.77]
[1726066623554,3.8731,129.1,129.05,32.77]
[1726066624144,1.3963,129.12,129.01,32.77]
[1726066624454,32.77,129.11,129.01,32.77]
[1726066625344,1.3963,129.12,129.03,32.77]
[1726066625744,3.82954809,129.11,129.03,32.77]
[1726066625944,1.3963,129.12,129.03,32.77]
[1726066626141,5.20608218,129.12,129.01,32.77]
[1726066626443,3.8737,129.09,129.03,3.8751]
[1726066626648,3.92450197,129.1,129.01,32.77]
[1726066626840,34.1663,129.12,129.02,3.8753]
[1726066627043,34.1663,129.12,129.01,32.77]
[1726066627349,3.8733,129.1,129.04,3.8747]
[1726066627547,3.8733,129.1,129.03,32.77]
[1726066627748,5.25259021,129.12,129.03,32.77]
[1726066627954,3.8732,129.1,129.03,32.77]
[1726066628651,3.8741,129.07,129.03,32.77]
[1726066628841,32.77,129.1,129.0,2.7426]
[1726066629158,32.77,129.1,129.01,3.8758]
[1726066629348,32.77,129.08,128.96,34.0956]
[1726066629548,1.4087,129.07,128.96,37.88231626]
[1726066629850,3.8744,129.06,129.0,3.8759]
[1726066630247,1.4087,129.07,128.96,37.88231626]
[1726066630450,1.4087,129.07,128.96,34.0956]
[1726066630649,34.074,129.06,128.96,1.3256]
[1726066630852,1.4096,129.05,128.96,1.3256]
[1726066631155,3.8751,129.04,128.96,1.3256]
[1726066631551,5.3641067,129.05,128.93,2.6756]
[1726066631751,3.8763,129.0,128.95,3.8776]
[1726066631953,32.77,129.04,128.93,2.6756]
[1726066632148,5.3641067,129.05,128.93,2.6756]
[1726066632450,5.3641067,129.05,128.95,32.77]
[1726066633752,3.8749,129.04,128.99,3.8764]
[1726066633947,1.4096,129.05,128.97,32.77]
[1726066634354,5.2843,129.05,128.97,32.77]
[1726066634555,1.4096,129.05,128.97,32.77]
[1726066634761,1.304,129.06,129.01,3.8756]
[1726066635460,5.1785,129.06,129.01,3.8756]
[1726066635652,1.304,129.06,128.97,32.77]
[1726066636166,1.304,129.06,128.95,1.3255]
[1726066636167,32.77,129.05,128.95,1.3255]
[1726066636363,1.354,129.04,128.95,1.3255]
[1726066636663,1.354,129.04,128.96,3.8771]
[1726066637057,32.77,129.02,128.93,2.6756]
[1726066637364,3.8766,128.99,128.94,3.8779]
[1726066637563,3.8766,128.99,128.9,34.1528]
[1726066637860,3.8769,128.98,128.93,3.878]
[1726066638062,34.176,129.01,128.9,34.1528]
[1726066638455,3.8766,128.99,128.94,3.8777]
[1726066638658,1.406,129.01,128.9,34.1528]
[1726066638857,1.406,129.01,128.92,32.77]
[1726066639059,3.8762,129.0,128.92,32.77]
[1726066639261,1.406,129.01,128.92,32.77]
[1726066639663,3.8765,128.99,128.94,3.8777]
[1726066639965,1.406,129.01,128.92,32.77]
[1726066640167,3.8763,129.0,128.95,3.8775]
[1726066640357,1.406,129.01,128.94,3.83105325]
[1726066640559,1.354,129.04,128.92,32.77]
[1726066640760,3.8757,129.02,128.92,32.77]
[1726066640959,2.6551,129.04,128.92,32.77]
[1726066641357,2.6551,129.04,128.94,32.77]
[1726066641562,2.6551,129.04,128.95,2.6448]
[1726066641756,2.6551,129.04,128.98,3.8765]
[1726066641960,2.6551,129.04,128.95,2.6448]
[1726066642165,2.6551,129.04,128.96,1.4017]
[1726066642368,6.54497979,129.04,128.96,1.4017]
[1726066642557,3.8757,129.02,128.98,3.8765]
[1726066642755,2.6551,129.04,128.96,1.4017]
[1726066642959,1.354,129.04,128.96,34.1717]
[1726066643269,1.354,129.04,128.98,3.8766]
[1726066643765,1.354,129.04,128.96,1.4017]
[1726066644668,3.8757,129.02,128.97,3.8768]
[1726066644860,3.8757,129.02,128.96,1.4017]
[1726066644861,1.354,129.04,128.96,1.4017]
[1726066645356,1.354,129.04,128.98,3.8764]
[1726066645965,1.354,129.04,128.99,3.8762]
[1726066646258,1.354,129.04,128.96,1.4017]
[1726066646461,5.2291,129.04,128.99,3.8762]
[1726066646761,1.354,129.04,128.99,3.8762]
[1726066646961,5.229,129.04,128.99,3.8762]
[1726066647162,3.87475765,129.05,128.96,34.1717]
[1726066647463,1.304,129.06,128.96,34.1717]
[1726066647667,1.304,129.06,129.01,3.8756]
[1726066647867,2.7363,129.08,128.98,32.77]
[1726066648065,1.3379,129.11,129.05,3.8744]
[1726066648369,1.3379,129.11,129.01,3.82103803]
[1726066648567,3.8736,129.09,129.01,6.43363803]
[1726066648763,5.2620731,129.11,129.01,6.43363803]
[1726066648965,1.3379,129.11,129.01,6.43363803]
[1726066649168,1.3379,129.11,129.02,32.77]
[1726066649478,5.23880955,129.11,129.02,1.3231]
[1726066649655,3.874,129.08,129.03,3.875]
[1726066649856,3.93076444,129.09,129.02,1.3231]
[1726066650064,1.3379,129.11,129.02,1.3231]
[1726066650269,1.3379,129.11,129.04,3.8748]
[1726066650468,3.82762937,129.1,129.04,3.8748]
[1726066650669,3.8736,129.09,129.04,3.8748]
[1726066650864,3.82762937,129.1,129.05,3.8746]
[1726066651167,7.70092937,129.1,129.05,3.8746]
[1726066651364,3.82762937,129.1,129.02,1.3231]
[1726066651766,7.70092937,129.1,129.02,1.3231]
[1726066652068,1.3379,129.11,129.04,3.8749]
[1726066652266,5.28776406,129.11,129.04,3.8749]
[1726066652466,3.8736,129.09,129.04,3.8749]
[1726066652671,7.68666048,129.09,129.04,3.8749]
[1726066653265,1.3379,129.11,129.06,3.8742]
[1726066653465,1.4289,129.12,129.02,1.3231]
[1726066653673,7.78979778,129.14,129.09,3.8734]
[1726066653863,3.91769778,129.14,129.09,3.8734]
[1726066654070,32.77,129.16,129.04,32.77]
[1726066654269,2.6699,129.17,129.07,3.8739]
[1726066654475,32.77,129.15,129.07,3.8739]
[1726066654674,36.61394549,129.15,129.07,3.8739]
[1726066654869,36.61394549,129.15,129.02,1.3231]
[1726066655073,32.77,129.12,129.02,1.3231]
[1726066655274,3.8734,129.09,129.03,3.875]
[1726066655577,3.83115946,129.09,129.02,1.3231]
[1726066655872,2.6526,129.11,129.03,3.8751]
[1726066656065,32.77,129.1,129.02,1.3231]
[1726066656268,32.77,129.1,129.01,6.43363803]
[1726066656474,7.72025767,129.09,129.04,3.8748]
[1726066656674,3.84665767,129.09,129.01,6.43363803]
[1726066656865,32.77,129.1,129.01,6.43363803]
[1726066657073,3.8739,129.08,129.03,3.875]
[1726066657272,32.77,129.1,129.01,6.43363803]
[1726066657473,36.73134449,129.1,129.01,6.43363803]
[1726066658782,3.8735,129.09,129.04,3.8747]
[1726066658972,36.73134449,129.1,129.01,6.43363803]
[1726066658973,3.96134449,129.1,129.01,6.43363803]
[1726066659179,3.9933,129.11,129.01,6.43363803]
[1726066659385,224.0,129.18,129.05,32.77]
[1726066659583,224.0,129.18,129.01,6.43363803]
[1726066659584,5.31548959,129.17,129.07,32.77]
[1726066659784,2.6502,129.17,129.14,3.8717]
[1726066659986,1.4263,129.21,129.11,32.77]
[1726066660482,1.4263,129.21,129.15,3.8714]
[1726066660689,3.84048631,129.2,129.15,3.8714]
[1726066661079,3.84048631,129.2,129.11,32.77]
[1726066661283,1.4263,129.21,129.11,32.77]
[1726066661485,5.27319591,129.21,129.11,32.77]
[1726066661686,1.4263,129.21,129.11,32.77]
[1726066661885,1.4263,129.21,129.1,1.3269]
[1726066662081,5.30107758,129.21,129.12,3.8725]
[1726066662286,5.30107758,129.21,129.1,1.3269]
[1726066662487,32.77,129.2,129.1,1.3269]
[1726066662690,32.77,129.2,129.12,3.8723]
[1726066662898,32.77,129.2,129.09,32.77]
[1726066663096,32.77,129.2,129.1,3.873]
[1726066663392,36.65871842,129.2,129.1,3.873]
[1726066663593,2.6502,129.23,129.09,32.77]
[1726066663794,6.50522807,129.23,129.14,32.77]
[1726066663997,2.6502,129.23,129.14,32.77]
[1726066664191,6.5788877,129.23,129.14,32.77]
[1726066664390,2.6502,129.23,129.14,32.77]
[1726066664791,3.87989855,129.22,129.14,32.77]
[1726066664992,2.6502,129.23,129.14,32.77]
[1726066665193,6.46775687,129.23,129.16,32.77]
[1726066665800,1.3205,129.23,129.16,32.77]
[1726066666000,32.77,129.27,129.16,32.77]
[1726066666001,3.78619242,129.25,129.16,32.77]
[1726066666195,3.8687,129.25,129.16,36.7736]
[1726066666588,3.8687,129.25,129.2,3.8699]
[1726066666791,3.869,129.24,129.16,36.7736]
[1726066666997,5.17120766,129.26,129.16,36.7736]
[1726066667196,37.94120766,129.26,129.18,3.8705]
[1726066667400,3.8695,129.23,129.18,3.8705]
[1726066667695,5.17120766,129.26,129.19,3.8703]
[1726066667896,224.0,129.32,129.19,32.77]
[1726066668093,32.77,129.3,129.19,36.68538724]
[1726066668291,32.77,129.3,129.19,3.91538724]
[1726066668492,3.8682,129.27,129.17,32.77]
[1726066668689,3.8682,129.27,129.17,36.65403007]
[1726066668894,32.77,129.3,129.17,36.65403007]
[1726066669092,3.8684,129.26,129.21,3.8696]
[1726066669691,32.77,129.27,129.19,3.8702]
[1726066669890,2.7323,129.25,129.16,4.0036]
[1726066670092,7.8173929,129.24,129.18,3.8706]
[1726066670297,7.8173929,129.24,129.16,4.0036]
[1726066670695,3.9482929,129.24,129.15,36.5754436]
[1726066670896,1.4299,129.24,129.15,36.5754436]
[1726066671097,3.91104451,129.23,129.15,36.5754436]
[1726066671307,7.78034451,129.23,129.18,3.8707]
[1726066671496,3.91104451,129.23,129.15,36.5754436]
[1726066671695,3.8701,129.21,129.15,3.8715]
[1726066671896,3.8701,129.21,129.13,36.5664465]
[1726066672107,3.83593635,129.23,129.13,36.5664465]
[1726066672306,3.8697,129.22,129.16,3.8713]
[1726066672495,3.81502996,129.21,129.16,3.8713]
[1726066672696,34.1999,129.24,129.13,36.5664465]
[1726066672896,1.4299,129.24,129.15,32.77]
[1726066673202,1.4299,129.24,129.17,32.77]
[1726066673401,2.7323,129.25,129.17,32.77]
[1726066673708,6.59340146,129.25,129.17,32.77]
[1726066673897,3.8691,129.24,129.19,3.8702]
[1726066674098,2.7323,129.25,129.17,32.77]
[1726066674393,3.869,129.24,129.17,32.77]
[1726066674797,2.7323,129.25,129.17,32.77]
[1726066674998,6.6009,129.25,129.17,32.77]
[1726066675198,6.51848133,129.25,129.17,32.77]
[1726066675399,3.8697,129.22,129.17,3.8708]
[1726066675812,7.82228133,129.25,129.17,3.8708]
[1726066676302,7.82228133,129.25,129.15,36.70366473]
[1726066676500,3.8692,129.24,129.15,36.70366473]
[1726066676700,7.82228133,129.25,129.18,3.8705]
[1726066677000,7.82228133,129.25,129.15,36.70366473]
[1726066677202,7.82228133,129.25,129.13,32.77]
[1726066677203,32.77,129.23,129.13,32.77]
[1726066677406,32.77,129.21,129.11,32.77]
[1726066677902,32.77,129.21,129.12,3.8724]
[1726066678109,32.77,129.19,129.08,32.77]
[1726066678296,4.1804,129.18,129.06,170.01028642]
[1726066678497,3.8717,129.15,129.06,170.01028642]
[1726066678801,3.84918878,129.16,129.06,40.65403064]
[1726066679003,32.77,129.17,129.09,3.8731]
[1726066679405,36.70396926,129.17,129.06,36.7189]
[1726066679604,3.8724,129.13,129.08,3.8735]
[1726066680201,3.8724,129.13,129.04,32.77]
[1726066680202,3.88828845,129.14,129.04,32.77]
[1726066680612,32.77,129.15,129.04,32.77]
[1726066680806,3.8727,129.12,129.07,3.874]
[1726066681002,36.70576631,129.15,129.04,32.77]
[1726066681808,3.8722,129.13,129.08,3.8735]
[1726066682204,3.8722,129.13,129.04,32.77]
[1726066682406,3.8722,129.13,129.08,3.8734]
[1726066684109,36.70576631,129.15,129.06,3.97102123]
[1726066684309,36.70576631,129.15,129.04,32.77]
[1726066684502,3.8719,129.14,129.09,3.8732]
[1726066684906,36.70576631,129.15,129.06,3.83193863]
[1726066685108,3.93576631,129.15,129.11,3.8726]
[1726066685305,3.8715,129.16,129.11,3.8726]
[1726066685806,32.77,129.17,129.06,36.57443204]
[1726066686005,3.93925306,129.17,129.08,32.77]
[1726066686405,7.81035306,129.17,129.12,3.8723]
[1726066686606,7.81035306,129.17,129.1,3.96288547]
[1726066686819,7.81035306,129.17,129.08,32.77]
[1726066687405,7.81035306,129.17,129.08,36.60655712]
[1726066687613,7.81035306,129.17,129.13,3.8722]
[1726066688013,3.8714,129.16,129.08,36.60655712]
[1726066688206,3.93925306,129.17,129.08,36.60655712]
[1726066688414,4.1804,129.18,129.08,36.60655712]
[1726066688612,3.8715,129.16,129.12,3.8725]
[1726066688809,8.0123091,129.18,129.08,36.60655712]
[1726066689217,3.8718,129.15,129.08,36.60655712]
[1726066689713,8.0123091,129.18,129.08,36.60655712]
[1726066690409,8.0123091,129.18,129.11,3.8728]
[1726066690410,3.8717,129.15,129.11,3.8728]
[1726066690807,8.0123091,129.18,129.08,36.60655712]
[1726066691015,32.77,129.15,129.04,32.77]
[1726066691413,3.8728,129.12,129.07,3.8739]
[1726066691613,32.77,129.15,129.04,32.77]
[1726066691808,32.77,129.13,129.02,35.4155]
[1726066692010,32.77,129.13,129.02,3.8754]
[1726066692011,32.77,129.11,129.02,3.8754]
[1726066692205,32.77,129.09,129.02,3.8754]
[1726066692410,32.77,129.09,129.0,1.3823]
[1726066692607,36.68557354,129.09,129.0,1.3823]
[1726066693014,3.8738,129.08,129.03,3.875]
[1726066693519,3.91557354,129.09,129.0,1.3823]
[1726066693723,3.8737,129.08,129.03,3.875]
[1726066694011,3.81171358,129.08,129.0,1.3823]
[1726066694213,32.77,129.1,129.0,1.3823]
[1726066694214,3.8735,129.09,129.03,3.8749]
[1726066694408,3.88342062,129.08,129.0,1.3823]
[1726066695010,32.77,129.1,129.0,1.3823]
[1726066695408,36.67900259,129.1,129.0,1.3823]
[1726066695912,36.67900259,129.1,128.99,36.68500011]
[1726066696319,32.77,129.06,128.97,34.1222]
[1726066696511,2.7544,129.05,128.97,1.3522]
[1726066696709,4.0647,129.05,128.95,32.77]
[1726066696913,32.77,129.04,128.95,36.71884445]
[1726066697118,3.8756,129.02,128.95,36.71884445]
[1726066697312,4.0647,129.05,128.95,36.71884445]
[1726066697818,3.8753,129.03,128.98,3.8767]
[1726066698415,3.8756,129.02,128.97,3.8768]
[1726066698811,4.0647,129.05,128.95,36.71884445]
[1726066699919,2.7389,129.05,128.98,32.77]
[1726066700616,3.87096708,129.06,128.98,32.77]
[1726066700817,2.7,129.08,128.98,32.77]
[1726066701124,3.92137534,129.07,129.0,32.77]
[1726066701317,2.7,129.08,129.0,32.77]
[1726066704520,6.53601592,129.18,129.1,32.77]
[1726066704920,10.40691592,129.18,129.1,32.77]
[1726066705119,6.53601592,129.18,129.1,32.77]
[1726066705317,10.40681592,129.18,129.12,3.8723]
[1726066705621,2.7,129.18,129.1,32.77]
[1726066705923,2.7,129.18,129.14,3.8717]
[1726066706158,2.7,129.18,129.1,32.77]
[1726066706917,6.5708,129.18,129.13,3.872]
[1726066707724,3.94180765,129.2,129.12,32.77]
[1726066707916,32.77,129.23,129.12,32.77]
[1726066707917,2.7561,129.22,129.12,32.77]
[1726066708114,3.8701,129.2,129.15,3.8714]
[1726066708321,3.84370837,129.2,129.12,32.77]
[1726066708518,2.7561,129.22,129.12,32.77]
[1726066708818,4.0,129.24,129.17,32.77]
[1726066709521,4.0,129.24,129.19,3.8702]
[1726066709522,7.869,129.24,129.19,3.8702]
[1726066709829,4.0,129.24,129.17,32.77]
[1726066710344,4.0,129.24,129.14,2.6456]
[1726066710345,4.0,129.24,129.2,32.77]
[1726066710624,4.0,129.24,129.22,3.8693]
[1726066710826,4.0,129.24,129.2,32.77]
[1726066711928,4.0,129.24,129.21,3.8696]
[1726066712131,4.0,129.24,129.2,32.77]
[1726066712452,4.0,129.24,129.21,3.8698]
[1726066712620,4.0,129.24,129.17,32.77]
[1726066713025,4.0,129.24,129.21,3.8698]
[1726066713222,4.0,129.24,129.17,32.77]
[1726066714028,4.0,129.32,129.2,32.77]
[1726066714225,1.4351,129.31,129.22,32.77]
[1726066714532,5.23734458,129.31,129.22,32.77]
[1726066714830,3.8677,129.29,129.22,32.77]
[1726066715030,5.23734458,129.31,129.22,32.77]
[1726066715644,5.23734458,129.31,129.23,3.869]
[1726066715824,38.00734458,129.31,129.2,32.77]
[1726066716025,3.8685,129.26,129.21,3.8698]
[1726066717024,32.77,129.29,129.2,3.87]
[1726066717229,32.77,129.29,129.18,32.77]
[1726066717625,3.8685,129.26,129.18,32.77]
[1726066717932,32.77,129.29,129.18,32.77]
[1726066718434,32.77,129.27,129.18,32.77]
[1726066718730,2.6288,129.26,129.16,32.77]
[1726066718930,3.8694,129.23,129.18,3.8707]
[1726066719132,7.81227315,129.23,129.18,3.8707]
[1726066719433,3.8696,129.22,129.17,3.871]
[1726066719634,3.8696,129.22,129.16,32.77]
[1726066719827,1.3554,129.25,129.16,32.77]
[1726066720028,3.8692,129.23,129.18,3.8705]
[1726066720231,3.95409979,129.24,129.16,32.77]
[1726066720827,3.95293841,129.23,129.16,32.77]
[1726066721031,1.3554,129.25,129.16,32.77]
[1726066721633,3.8697,129.22,129.17,3.8708]
[1726066721829,7.67359509,129.22,129.17,3.8708]
[1726066722339,3.80389509,129.22,129.16,32.77]
[1726066722531,1.3554,129.25,129.16,32.77]
[1726066723033,3.8695,129.23,129.17,3.8708]
[1726066723233,3.93542892,129.22,129.16,32.77]
[1726066723442,3.93542892,129.22,129.18,3.8705]
[1726066724032,3.93542892,129.22,129.17,3.8708]
[1726066724229,1.3554,129.25,129.17,3.8708]
[1726066724451,1.3554,129.25,129.16,32.77]
[1726066724452,3.8696,129.22,129.16,32.77]
[1726066724632,7.70786262,129.22,129.17,3.8708]
[1726066725330,3.8698,129.21,129.17,3.8708]
[1726066725533,3.8698,129.21,129.16,3.8712]
[1726066725735,34.1254,129.25,129.14,36.7672]
[1726066725931,3.8703,129.2,129.14,36.7672]
[1726066726143,3.88966496,129.2,129.14,36.7672]
[1726066726342,4.0,129.27,129.16,32.77]
[1726066726638,4.0,129.27,129.2,32.77]
[1726066726833,4.0,129.27,129.2,36.54621962]
[1726066727036,4.0,129.27,129.25,3.8685]
[1726066727430,4.0,129.27,129.21,2.6559]
[1726066727645,4.0,129.27,129.24,3.8687]
[1726066728141,4.0,129.27,129.23,3.869]
[1726066728538,4.0,129.27,129.21,2.6559]
[1726066728736,4.0,129.27,129.23,3.8691]
[1726066728938,4.0,129.27,129.21,2.6559]
[1726066729136,4.0,129.27,129.24,3.8687]
[1726066729334,4.0,129.27,129.21,2.6559]
[1726066729741,4.0,129.27,129.23,3.869]
[1726066729938,4.0,129.27,129.21,2.6559]
[1726066730439,4.0,129.27,129.25,32.77]
[1726066730753,3.80188262,129.38,129.25,65.54]
[1726066730754,4.0707,129.35,129.25,65.54]
[1726066730940,7.9365,129.35,129.3,3.867]
[1726066731137,4.0707,129.35,129.3,3.867]
[1726066731535,7.9365,129.35,129.3,3.867]
[1726066732138,4.0707,129.35,129.29,32.77]
[1726066732841,4.0707,129.35,129.31,3.8666]
[1726066733233,7.9364,129.35,129.3,3.8669]
[1726066733641,4.0707,129.35,129.27,32.77]
[1726066734345,1.394,129.35,129.32,3.8663]
[1726066734537,1.394,129.35,129.29,32.77]
[1726066734741,1.394,129.35,129.3,3.8669]
[1726066734949,1.394,129.35,129.29,32.77]
[1726066735242,3.80188262,129.38,129.29,32.77]
[1726066735449,2.8272,129.41,129.29,32.77]
[1726066735450,1.4159,129.39,129.29,32.77]
[1726066736143,1.4159,129.39,129.26,33.5531]
[1726066736144,34.1859,129.39,129.26,33.5531]
[1726066736348,3.8665,129.33,129.27,3.8678]
[1726066736537,1.4322,129.41,129.31,32.77]
[1726066736735,1.4159,129.38,129.31,32.77]
[1726066736939,1.395,129.4,129.33,32.77]
[1726066737335,9.16668118,129.41,129.35,3.8654]
[1726066737548,1.4322,129.41,129.33,32.77]
[1726066737947,1.4322,129.41,129.35,3.8656]
[1726066738248,1.4322,129.41,129.33,32.77]
[1726066738453,5.2962,129.41,129.35,3.8654]
[1726066738753,5.27847076,129.41,129.33,32.77]
[1726066739952,38.04847076,129.41,129.31,32.77]
[1726066740152,32.77,129.39,129.29,32.77]
[1726066740341,3.8665,129.33,129.27,3.8679]
[1726066740544,1.3147,129.38,129.26,32.77]
[1726066740850,34.0707,129.37,129.26,32.77]
[1726066741152,34.0707,129.37,129.24,32.77]
[1726066741352,3.88536683,129.4,129.31,32.77]
[1726066741543,32.77,129.43,129.31,36.70565033]